Cogmind - Beta 15 @@@ ROGUE MODE // 2025.10.12 @ 20:53:38 Player: Bean Result: Destroyed by B-86 Titan with Hardcell Cannon Performance ------------- Evolutions (4) 2000 Regions Visited (7) 1400 Robots Destroyed (61) 305 Value Destroyed (1802) 1802 Prototype IDs (1) 20 Alien Tech Used (0) 0 Bonus (1101) 1101 TOTAL SCORE: 6628 Bonus ------- Follower Combat Kills 328 Entered Garrisons 200 Met Imprinter 300 Was Imprinted 300 Friendly Fire -27 Cogmind --------- Core Integrity 0/850 Matter 300/300 Energy 100/100 System Corruption 9% Temperature Cool (9) Movement Core (50) Location -6/Garrison Parts ------- > --- POWER (2) -------- (None) > --- PROPULSION (4) --- (None) > --- UTILITY (6) ------ Advanced Heat Sink (fused) Coolant Injector 0b10 Decoder Chip [Looter] > --- WEAPON (3) ------- (None) > --- INVENTORY (5) ---- Advanced Heat Sink Focal Shield Hacking Drone Bay (1/1) Peak State ------------ > --- POWER ------------ Improved Deuterium Engine Angular Momentum Engine > --- PROPULSION ------- Armored Leg Improved Gravmag System Improved Gravmag System Combat Airjet > --- UTILITY ---------- 0b10 Decoder Chip [Generic] 0b10 Decoder Chip [Looter] 0b10 Decoder Chip [Scout] 0b10 Decoder Chip [Skirmisher] Advanced Melee Analysis Suite Hacking Drone Bay > --- WEAPON ----------- Gatling Laser Heavy Plasma Cannon Phasing Sabre > --- INVENTORY -------- CR-A16's Pointy Stick [Rating: 78] Favorites ----------- Power Light Ion Engine Engine Light Ion Engine Power Core Fission Core Propulsion Carbon-fiber Leg Treads Light Treads Leg Carbon-fiber Leg Hover Unit Gravmag Array Flight Unit Flight Unit Utility 0b10 Decoder Chip [Skirmisher] Device Cloaking Device Storage Small Matter Pod Processor 0b10 Decoder Chip [Skirmisher] Hackware Hacking Suite Protection Medium Reflective Plating Weapon Phasing Sabre Energy Gun Heavy Beamcaster Energy Cannon Heavy Plasma Cannon Ballistic Gun Heavy Battle Rifle Launcher Grenade Launcher Slashing Weapon Phasing Sabre Piercing Weapon CR-A16's Pointy Stick Build | -11 -10 -9 -9 -7 -6 -6 -6 ------- Run | Yrd Mat Mat Min Zio Pro Fac Gar Slots Evolved 8 | . . 2 . . . 6 . Power 1 | . . 1 . . . . . Propulsion 2 | . . . . . . 2 . Utility 4 | . . . . . . 4 . Weapon 1 | . . 1 . . . . . Parts Attached 76 | 6 8 1 7 12 7 13 22 Power 18 | 1 3 1 2 1 3 1 6 Engine 15 | 1 3 1 2 . 3 1 4 Core 3 | . . . . 1 . . 2 Reactor . | . . . . . . . . Propulsion 23 | 2 . . 3 2 2 6 8 Treads 5 | 2 . . . . . . 3 Leg 10 | . . . . 2 2 1 5 Wheel . | . . . . . . . . Hover 5 | . . . . . . 5 . Flight 3 | . . . 3 . . . . Utility 20 | 1 4 . . 3 . 5 7 Device 10 | . 2 . . . . 2 6 Storage 2 | 1 1 . . . . . . Processor 6 | . 1 . . 2 . 3 . Hackware 1 | . . . . 1 . . . Protection 1 | . . . . . . . 1 Artifact . | . . . . . . . . Weapon 15 | 2 1 . 2 6 2 1 1 Energy Gun 6 | 2 . . 1 1 1 . 1 Energy Cannon 1 | . . . . . . 1 . Ballistic Gun 4 | . . . 1 3 . . . Ballistic Cannon . | . . . . . . . . Launcher 1 | . 1 . . . . . . Special Weapon . | . . . . . . . . Impact Weapon . | . . . . . . . . Slashing Weapon 2 | . . . . 2 . . . Piercing Weapon 1 | . . . . . 1 . . Special Melee Weapon . | . . . . . . . . Unidentified Prototypes 1 | . . . . . . 1 . Corrupted Parts 1 | . . . . . 1 . . System Corruption 2 | . . . . . 2 . . Parts Lost 44 | . 3 3 3 . 5 5 25 Power 9 | . 2 . 1 . 1 2 3 Propulsion 14 | . . 2 . . 2 1 9 Utility 11 | . 1 . . . . 1 9 Weapon 10 | . . 1 2 . 2 1 4 Highest Loss Streak 9 | . 1 2 3 . 4 3 9 To Critical Strikes . | . . . . . . . . Average Backups 3 | 1 2 3 2 4 4 1 2 Power . | . . . . . . . . Propulsion . | . . . 1 . . . . Utility 1 | . . . 1 2 2 . 1 Weapon 1 | 1 1 1 . 1 1 . . Tool/Special . | . . . . . . . . Unused Backups 6 | . . . 1 2 . . 3 Power . | . . . . . . . . Propulsion 3 | . . . 1 2 . . . Utility 3 | . . . . . . . 3 Weapon . | . . . . . . . . Tool/Special . | . . . . . . . . Average Slot Usage (%) 80 | . 92 52 47 85 88 90 66 Engine 11 | . 10 9 11 15 14 12 7 Core 1 | . . . . . 3 . . Treads 5 | . 28 9 . . . . 2 Leg 8 | . . . . 13 14 11 3 Hover 2 | . . . . . . 6 7 Flight 1 | . . . 15 8 . . . Device 5 | . 11 7 . . . 5 9 Storage 1 | . 2 11 11 . . . . Processor 19 | . 11 . . 20 22 32 21 Energy Gun 7 | . 14 9 1 5 14 5 . Energy Cannon 1 | . . . . . . 5 3 Ballistic Gun 3 | . . . 8 12 7 . . Launcher 2 | . 12 5 . . . . . Slashing Weapon 5 | . . . . 8 11 6 3 Peak Build Rating 78 | 6 7 8 7 42 45 78 61 Average Rating 37 | 4 6 4 4 30 39 69 53 On Entrance 20 | . 6 7 1 7 42 37 61 Naked Turns . | . . . . . . . . Heaviest Build 43 | 10 13 15 8 26 38 42 43 Greatest Support 60 | 40 40 40 8 40 40 46 60 Greatest Overweight (x) 9 | . . 3 . 1 9 1 2 Average Overweight (x) . | . . . . . 1 . . Largest Inventory Capacity 8 | 8 8 5 5 5 5 5 5 Average Capacity 5 | 6 5 5 5 5 5 5 5 Most Carried 5 | 5 4 4 5 5 5 4 5 Average Carried 3 | 1 2 3 3 4 4 1 2 Final Capacity 8 | 8 5 5 5 5 5 5 5 Final Carried 5 | 2 2 4 5 5 4 2 3 Class Distribution -------------------- 49% | Derelict-Mutant 26% | Scavenger-Mutant 23% | Mutant Dominant Class ---------------- Mutant | -10/Materials Mutant | -9/Materials Scavenger-Mutant | -9/Mines Derelict-Mutant | -7/Zion Derelict-Mutant | -6/Proximity Caves Derelict-Mutant | -6/Factory Derelict-Mutant | -6/Garrison Resources | -11 -10 -9 -9 -7 -6 -6 -6 ----------- Run | Yrd Mat Mat Min Zio Pro Fac Gar Matter Collected 1568 | 252 241 188 186 225 131 115 230 Remotely . | . . . . . . . . Salvage Created 1828 | . 445 212 100 . 365 216 490 Parts 99 | . 26 15 9 . 22 6 21 Haulers Intercepted 1 | . 1 . . . . . . Recyclers Shooed 5 | . 1 3 . . . 1 . Parts Field Recycled . | . . . . . . . . Retrieved Matter . | . . . . . . . . Parts Self-Destructed 26 | . . . . . 26 . . Prevented 4 | . . . . . 4 . . Kills | -11 -10 -9 -9 -7 -6 -6 -6 ------- Run | Yrd Mat Mat Min Zio Pro Fac Gar Combat Hostiles Destroyed 47 | . 14 5 6 . 9 3 10 Melee 18 | . . . . . 5 3 10 Guns 14 | . 2 3 5 . 4 . . AOE 15 | . 12 2 1 . . . . Classes Destroyed 12 | . 7 3 . . 1 . 1 Worker 2 | . . 1 . . . 1 . Builder 4 | . 3 1 . . . . . Tunneler 1 | . . 1 . . . . . Hauler 1 | . 1 . . . . . . Recycler 1 | . 1 . . . . . . Operator 2 | . 1 1 . . . . . Watcher 3 | . 3 . . . . . . Swarmer 19 | . 3 . 6 . 6 . 4 Grunt 19 | . 11 4 . . . . 4 Brawler 2 | . . . . . 1 . 1 Sentry 6 | . . 1 . . 2 3 . Behemoth 1 | . . . . . . . 1 Best Kill Streak 6 | . 6 4 3 . 3 3 2 Combat Bots Only 3 | . 3 2 3 . 3 2 2 Max Kills in Single Turn 3 | . 3 1 1 . 1 1 1 Gunslinging . | . . . . . . . . Exploded 2 | . 2 1 1 . . . . Melee 1 | . . . . . 1 1 1 Uniques/NPCs Destroyed . | . . . . . . . . Combat | -11 -10 -9 -9 -7 -6 -6 -6 -------- Run | Yrd Mat Mat Min Zio Pro Fac Gar Hostile Shots Fired 545 | . 49 23 42 . 99 147 185 Missed 178 | . 16 12 13 . 37 54 46 Hits 367 | . 33 11 29 . 62 93 139 Melee 9 | . . . . . 1 . 8 Projectile 358 | . 33 11 29 . 61 93 131 Critical Strikes 9 | . . 1 . . . . 8 Damage Taken 5539 | . 669 206 270 . 775 805 2814 Core 1325 | . 67 75 151 . 166 191 675 Absorbed by Shields . | . . . . . . . . Ignored by Resistances 258 | . . . . . . . 258 Regen/Repaired (Parts) 109 | . 109 . . . . . . Core Remaining (%) 58 | 100 73 . . . 2 . . Volleys Fired 118 | . 44 24 28 . 22 . . Largest 2 | . 2 2 2 . 2 . . Hottest 114 | . 70 80 80 . 114 . . Shots Fired 198 | . 84 39 29 . 45 . 1 Gun 147 | . 44 28 29 . 45 . 1 Cannon . | . . . . . . . . Launcher 51 | . 40 11 . . . . . Special . | . . . . . . . . Kinetic 37 | . . . 15 . 22 . . Thermal 97 | . 44 28 1 . 23 . 1 Explosive 51 | . 40 11 . . . . . Electromagnetic 13 | . . . 13 . . . . Robot Hit Streak 12 | . 7 12 7 . 7 . . Robot Miss Streak 5 | . 2 2 5 . 5 . . Penetration Max . | . . . . . . . . Secondary Targets 3 | . . 1 1 . 1 . . Max Gunslinging Chain 1 | . . 1 1 . 1 . . Shots Hit Robots 168 | . 39 15 17 . 33 23 41 Core Hits 112 | . 48 20 9 . 13 8 14 Critical Kills . | . . . . . . . . Critical Parts Destroyed . | . . . . . . . . Critical Strikes 10 | . . . . . . 5 5 Sever 7 | . . . . . . 5 2 Impale 3 | . . . . . . . 3 Melee Attacks 104 | . . . . . 13 25 66 Impact . | . . . . . . . . Slashing 52 | . . . . . 13 25 14 Piercing 52 | . . . . . . . 52 Sneak Attacks 1 | . . . . . . 1 . Combat Hostiles . | . . . . . . . . Follow-up Attacks . | . . . . . . . . Damage Inflicted 6246 | . 1935 561 243 . 965 1033 1509 Guns 1127 | . 264 181 166 . 516 . . Cannons . | . . . . . . . . Explosions 2126 | . 1669 380 77 . . . . Melee 2991 | . . . . . 449 1033 1509 Ramming 2 | . 2 . . . . . . Kinetic 355 | . . . 91 . 264 . . Thermal 937 | . 417 181 87 . 252 . . Explosive 1896 | . 1516 380 . . . . . Electromagnetic 65 | . . . 65 . . . . Impact . | . . . . . . . . Slashing 2087 | . . . . . 449 1033 605 Piercing 904 | . . . . . . . 904 Highest Corruption 9 | . . . . . 2 . 9 Average Corruption 5 | . . . . . 2 . 8 Corruption Purged . | . . . . . . . . Corruption Blocked . | . . . . . . . . Effects 18 | . . . . . 5 . 13 Message Errors 6 | . . . . . . . 6 Matter Fused 1 | . . . . . . . 1 Heat Flow Errors 2 | . . . . . 1 . 1 Energy Discharges 2 | . . . . . 1 . 1 Parts Fused 1 | . . . . . . . 1 Data Loss (minor) 3 | . . . . . 2 . 1 Misfires 2 | . . . . . 1 . 1 Alerts 1 | . . . . . . . 1 Overload Shots . | . . . . . . . . Overflow Damage 216 | . 93 8 . . 13 50 52 Projectiles . | . . . . . . . . Explosions 101 | . 93 8 . . . . . Melee 115 | . . . . . 13 50 52 Knockbacks . | . . . . . . . . Impact . | . . . . . . . . Kinetic . | . . . . . . . . Secondary . | . . . . . . . . Self-Inflicted Damage 370 | . 274 58 38 . . . . Shots 18 | . 15 2 1 . . . . Rammed 2 | . 2 . . . . . . Targets Rammed 2 | . 2 . . . . . . Kicked . | . . . . . . . . Crushed . | . . . . . . . . Highest Temperature 502 | . 145 108 9 . 502 13 237 Average Temperature 117 | . 37 34 5 . 181 5 56 Received Heat Transfer 1521 | . 204 87 . . 174 324 732 Effects 10 | . . . . . 10 . . Shutdowns 5 | . . . . . 5 . . Energy Bleed 1 | . . . . . 1 . . Damage (major) 4 | . . . . . 4 . . Siege Activations . | . . . . . . . . Martial Activations . | . . . . . . . . Shielding Activations . | . . . . . . . . Robots Disrupted . | . . . . . . . . Combat Hostiles . | . . . . . . . . Robots Corrupted . | . . . . . . . . Combat Hostiles . | . . . . . . . . Parts Fried . | . . . . . . . . Impact Corruptions . | . . . . . . . . Robots Melted . | . . . . . . . . Combat Hostiles . | . . . . . . . . Parts Melted 1 | . . . . . . 1 . Heat Transferred 1582 | . 700 400 75 . 407 . . Parts Sabotaged . | . . . . . . . . Parts Stolen . | . . . . . . . . Parts Stripped . | . . . . . . . . Power Chain Reactions 1 | . . . 1 . . . . Alert | -11 -10 -9 -9 -7 -6 -6 -6 ------- Run | Yrd Mat Mat Min Zio Pro Fac Gar Maximum Alert Level 1 | . 1 1 . . . . 1 Low Security (%) 85 | 100 78 46 100 . . 100 88 Level 1 14 | . 21 53 . . . . 11 Level 2 . | . . . . . . . . Level 3 . | . . . . . . . . Level 4 . | . . . . . . . . Level 5 . | . . . . . . . . High Security . | . . . . . . . . Max Security . | . . . . . . . . Peak Influence 369 | . 369 242 158 . . 30 270 Initial 150 | . . 150 72 . . 25 15 Average 79 | . 141 194 118 . . 2 59 Influence Increases 2033 | . 726 217 146 . 503 81 360 Destroy 0b10 Robot/C 1120 | . 280 100 120 . 360 60 200 Destroy 0b10 Robot/NC 70 | . 45 20 . . . 5 . Destroy Leader 198 | . 78 30 20 . 30 10 30 Allied During Kill 83 | . . . . . 83 . . Successful Hack 24 | . 19 . . . . 5 . Disable Machine 120 | . 120 . . . . . . Anti-Garrison Action 100 | . . . . . . . 100 Destroy Structure 243 | . 184 52 6 . . 1 . Partial Spotted 15 | . . 15 . . . . . Lose Combat Pursuer 60 | . . . . . 30 . 30 Influence Decreases 1853 | . 369 387 225 108 463 99 202 Entered New Map 452 | . . 207 115 108 . 15 7 Time Decay 936 | . 339 150 80 . 293 74 . Lost Part 345 | . 30 30 30 . 50 10 195 Lost Ally 120 | . . . . . 120 . . Squads Dispatched 6 | . 4 1 . . . 1 . Investigation 2 | . 2 . . . . . . Extermination 1 | . . . . . . 1 . Reinforcement 3 | . 2 1 . . . . . Assault . | . . . . . . . . Garrison . | . . . . . . . . Intercept . | . . . . . . . . Searches Triggered . | . . . . . . . . Construction Impeded . | . . . . . . . . Haulers Reinforced . | . . . . . . . . Active Scanning Responses . | . . . . . . . . Cargo Convoy Interrupts . | . . . . . . . . Stealth | -11 -10 -9 -9 -7 -6 -6 -6 --------- Run | Yrd Mat Mat Min Zio Pro Fac Gar Distress Signals 2 | . . 1 . . . 1 . Communications Jammed . | . . . . . . . . Distress Signals . | . . . . . . . . Times Spotted 75 | . 21 9 6 . 19 6 14 Peak Tracking Total 7 | . 3 2 3 . 7 3 4 Tactical Retreats 2 | . . . . . 1 . 1 Traps | -11 -10 -9 -9 -7 -6 -6 -6 ------- Run | Yrd Mat Mat Min Zio Pro Fac Gar Traps Triggered 3 | . . 2 . . . . 1 Indirectly . | . . . . . . . . Trap Hack Attempts . | . . . . . . . . Triggered . | . . . . . . . . Disarmed . | . . . . . . . . Reprogrammed . | . . . . . . . . Reused . | . . . . . . . . Traps Extracted . | . . . . . . . . Installed . | . . . . . . . . Triggered . | . . . . . . . . Machines | -11 -10 -9 -9 -7 -6 -6 -6 ---------- Run | Yrd Mat Mat Min Zio Pro Fac Gar Machines Disabled 8 | . 8 . . . . . . Max in Single Turn 3 | . 3 . . . . . . Machines Repaired . | . . . . . . . . Machines Dismantled . | . . . . . . . . Machines Sabotaged . | . . . . . . . . Overloaded Fab Kills . | . . . . . . . . Hacking | -11 -10 -9 -9 -7 -6 -6 -6 --------- Run | Yrd Mat Mat Min Zio Pro Fac Gar Machines Accessed 7 | . 4 . . 1 . 2 . Terminals 4 | . 3 . . . . 1 . Fabricators . | . . . . . . . . Repair Stations 1 | . 1 . . . . . . Recycling Units . | . . . . . . . . Scanalyzers . | . . . . . . . . Garrison Access 1 | . . . . . . 1 . Total Hacks 20 | . 12 . . 5 . 3 . Successful 15 | . 8 . . 5 . 2 . Failed 5 | . 4 . . . . 1 . Catastrophic 1 | . 1 . . . . . . Database Lockouts . | . . . . . . . . Manual 10 | . 8 . . . . 2 . Terminals 10 | . 8 . . . . 2 . Fabricators . | . . . . . . . . Repair Stations 4 | . 4 . . . . . . Recycling Units . | . . . . . . . . Scanalyzers . | . . . . . . . . Garrison Access 1 | . . . . . . 1 . Terminal Hacks 8 | . 2 . . 5 . 1 . Part Schematic 5 | . . . . 5 . . . Open DSF 1 | . . . . . . 1 . Level Access Points 1 | . 1 . . . . . . Terminal Index 1 | . 1 . . . . . . Fabricator Hacks . | . . . . . . . . Repair Station Hacks 4 | . 4 . . . . . . Scan Component 2 | . 2 . . . . . . Repair 2 | . 2 . . . . . . Recycling Unit Hacks . | . . . . . . . . Scanalyzer . | . . . . . . . . Garrison Access Hacks 1 | . . . . . . 1 . Unlock Access 1 | . . . . . . 1 . Unauthorized Hacks 2 | . 2 . . . . . . Terminals 2 | . 2 . . . . . . Botnet 2 | . 2 . . . . . . Fabricators . | . . . . . . . . Repair Stations . | . . . . . . . . Recycling Units . | . . . . . . . . Scanalyzers . | . . . . . . . . Garrison Access . | . . . . . . . . Data Cores Recovered . | . . . . . . . . Used . | . . . . . . . . Hacking Detections 5 | . 3 . . . . 2 . Full Trace Events 2 | . 2 . . . . . . Feedback Events . | . . . . . . . . Feedback Blocked . | . . . . . . . . Robot Schematics Acquired 3 | . . . . 3 . . . Robots Built . | . . . . . . . . Authchips . | . . . . . . . . Time . | . . . . . . . . Total Robot Build Rating . | . . . . . . . . Part Schematics Acquired 19 | . . . . 19 . . . Parts Built . | . . . . . . . . Authchips . | . . . . . . . . Time . | . . . . . . . . Total Part Build Rating . | . . . . . . . . Parts Repaired 2 | . 2 . . . . . . Time 52 | . 52 . . . . . . Parts Recycled . | . . . . . . . . Recycled Matter . | . . . . . . . . Retrieved Matter . | . . . . . . . . Retrieved Components . | . . . . . . . . Parts Scanalyzed . | . . . . . . . . Part Schematics Acquired . | . . . . . . . . Parts Damaged . | . . . . . . . . Bothacking | -11 -10 -9 -9 -7 -6 -6 -6 ------------ Run | Yrd Mat Mat Min Zio Pro Fac Gar Used RIF Installer . | . . . . . . . . Robots Hacked . | . . . . . . . . Non-combat . | . . . . . . . . Combat . | . . . . . . . . Robot Hacks Applied . | . . . . . . . . Relay Couplers Released . | . . . . . . . . Fabnet Peak Effective % . | . . . . . . . . Robots Rewired 2 | . . . . . 2 . . Allies Hacked . | . . . . . . . . Hacks Repelled . | . . . . . . . . Allies | -11 -10 -9 -9 -7 -6 -6 -6 -------- Run | Yrd Mat Mat Min Zio Pro Fac Gar Total Allies 7 | . . . 1 4 2 . . Largest Group 5 | . . . 1 5 5 . . Highest-Rated Group 183 | . . . 31 183 183 . . Highest-Rated Ally 40 | . . . 31 40 40 . . Total Orders . | . . . . . . . . Ally Attacks 39 | . . . . . 39 . . Total Damage 901 | . . . . . 901 . . Kills 10 | . . . . . 10 . . Allies Corrupted 2 | . . . . . 2 . . Allies Melted . | . . . . . . . . Intel | -11 -10 -9 -9 -7 -6 -6 -6 ------- Run | Yrd Mat Mat Min Zio Pro Fac Gar Active Infowar (turns) 5460 | . 720 198 . 998 1288 786 1470 Sensors 918 | . 720 198 . . . . . Decoding 4542 | . . . . 998 1288 786 1470 Cloaking 931 | . . . . . . 92 839 Robot Analysis Total . | . . . . . . . . Derelict Logs Recovered 3 | . . . 1 1 1 . . Drone Launches . | . . . . . . . . Drone Recoveries . | . . . . . . . . Decoded 0b10 Intel 174 | . . . . . . 75 99 Traps 12 | . . . . . . . 12 Emergency Access 3 | . . . . . . . 3 Items 120 | . . . . . . 67 53 Machines 4 | . . . . . . 2 2 Garrisons 1 | . . . . . . 1 . Patrols 10 | . . . . . . . 10 Guards 24 | . . . . . . 5 19 Exploration | -11 -10 -9 -9 -7 -6 -6 -6 ------------- Run | Yrd Mat Mat Min Zio Pro Fac Gar Turns Passed 6027 | 92 877 309 167 1038 1288 786 1470 Spaces Moved 3298 | 52 419 127 152 1344 509 318 377 Core 157 | 4 . 62 12 . 76 . 3 Treads 668 | 48 419 65 . . . . 136 Legs 1190 | . . . . 450 433 187 120 Wheels . | . . . . . . . . Hover 249 | . . . . . . 131 118 Flight 1034 | . . . 140 894 . . . Fastest Speed 34 | 50 160 50 34 34 120 52 50 Average Speed 119 | 151 160 122 37 69 212 155 122 Slowest Speed 500 | 160 160 200 50 140 500 190 240 Overloaded Moves . | . . . . . . . . Propulsion Burnouts . | . . . . . . . . Robots Hopped . | . . . . . . . . Potential Cave-ins . | . . . . . . . . Cave-ins Triggered . | . . . . . . . . Exploration Rate (%) 41 | 5 79 26 23 87 64 10 37 Regions Visited 7 Branch Regions 3 Pre-discovered Areas 2 | . . . . 2 . . . Known Exits Taken 3 | . 1 . . . 1 1 . Unknown Exits Taken 4 | 1 . 1 1 1 . . . Scrap Searched 2 | . . . 1 1 . . . Spaces Dug 21 | . 14 6 . . . 1 . Terrain Destroyed 273 | . 212 54 6 . . 1 . Melee 1 | . . . . . . 1 . Projectile . | . . . . . . . . AOE 272 | . 212 54 6 . . . . Terrain Rammed . | . . . . . . . . Walls Destroyed . | . . . . . . . . Machines Disabled . | . . . . . . . . Actions | -11 -10 -9 -9 -7 -6 -6 -6 --------- Run | Yrd Mat Mat Min Zio Pro Fac Gar Total 5026 | 65 541 240 234 1454 654 576 1262 Wait 1235 | . 55 84 35 53 60 198 750 Move 3291 | 51 418 126 151 1343 508 317 377 Hop . | . . . . . . . . Pick Up 102 | 8 9 4 10 23 9 12 27 Fast Attach . | . . . . . . . . Attach 77 | 6 8 2 8 12 6 15 20 Detach 4 | . . . . . 1 2 1 Swap 12 | . 2 . 1 3 2 . 4 Drop 45 | . 3 . 1 20 6 7 8 Fire 118 | . 44 24 28 . 22 . . Melee 104 | . . . . . 13 25 66 Ram . | . . . . . . . . Kick . | . . . . . . . . Crush 2 | . 2 . . . . . . Escape Stasis 5 | . . . . . . . 5 Rewire 31 | . . . . . 27 . 4 Trap . | . . . . . . . . Miscellaneous . | . . . . . . . . Route ------- -11/Scrapyard -10/Materials (discovered 5 exits: *Mat x3 / [*Min x2]) -9/Materials (discovered 2 exits: *Mat / [*Min]) -9/Mines (discovered 3 exits: *Mat x2 / *Zio) -7/Zion -6/Proximity Caves -6/Factory -6/Garrison (discovered 1 exit: [*Fac]) History --------- Turn | Location | Event 32 | -11/Scrapyard | Discovered new exit (range 14) 93 | -11/Scrapyard | Entered Materials 301 | -10/Materials | Build established: Mutant 415 | -10/Materials | Discovered new exit (range 9) 546 | -10/Materials | Repaired Grenade Launcher 574 | -10/Materials | Repaired Sml. Laser 742 | -10/Materials | Discovered new exit (range 11) 755 | -10/Materials | Identified exit to Materials 970 | -10/Materials | Entered another Materials area 970 | -9/Materials | Evolved 2 slots: Power x1, Weapon x1 1183 | -9/Materials | Discovered new exit (range 15) 1278 | -9/Materials | Discovered new exit (range 14) 1279 | -9/Materials | Entered Mines 1332 | -9/Mines | Core integrity fell below 50% 1339 | -9/Mines | Lost 3 parts (1p2w) 1362 | -9/Mines | Escorted by a lone wolf Derelict 1393 | -9/Mines | Discovered new exit (range 15) 1401 | -9/Mines | Identified exit to Materials 1413 | -9/Mines | A Derelict revealed a hidden shortcut to a safe place 1446 | -9/Mines | Entered Zion 1446 | -7/Zion | Accompanied by 1 ally 1455 | -7/Zion | Found CR-A16's Pointy Stick 1548 | -7/Zion | Learned location of Armory (-4) 1595 | -7/Zion | Met Imprinter 1601 | -7/Zion | Imprinted 1603 | -7/Zion | Declared Zion's savior 1648 | -7/Zion | Build established: Scavenger-Mutant 1702 | -7/Zion | Given the Hacking Drone Bay 1703 | -7/Zion | Found Prototype Device 1751 | -7/Zion | Learned Factory trap positions 1754 | -7/Zion | Acquired unknown access codes intercepted by a Zionite 1764 | -7/Zion | Learned Factory emergency access door positions 2000 | -7/Zion | Build established: Derelict-Mutant 2451 | -7/Zion | Discovered new exit (range 13) 2484 | -7/Zion | Entered Proximity Caves 2484 | -6/Proximity Caves | Accompanied by 5 allies 2528 | -6/Proximity Caves | Attracted the attention of an 0b10 outpost 2692 | -6/Proximity Caves | Lost 3 allies 2907 | -6/Proximity Caves | Attracted the attention of an 0b10 checkpoint 2923 | -6/Proximity Caves | Core integrity fell below 20% 2965 | -6/Proximity Caves | Lost 4 parts (1p2n1w) 3589 | -6/Proximity Caves | Identified exit to Factory 3670 | -6/Proximity Caves | Build established: Scavenger-Mutant 3768 | -6/Proximity Caves | Spotted B-75 Beast 3772 | -6/Proximity Caves | Entered Factory 3772 | -6/Factory | Evolved 6 slots: Propulsion x2, Utility x4 3773 | -6/Factory | Loaded intel: 95 trap records 3775 | -6/Factory | Identified Hacking Drone Bay 4399 | -6/Factory | Build established: Derelict-Mutant 4557 | -6/Factory | Identified exit to Garrison 4558 | -6/Factory | Entered Garrison 4571 | -6/Garrison | Lost 3 parts (1p1u1w) 5065 | -6/Garrison | Heavy support dispatched to Factory 5346 | -6/Garrison | Spotted B-75 Beast 5411 | -6/Garrison | Core integrity fell below 50% 5413 | -6/Garrison | Destroyed B-75 Beast 5441 | -6/Garrison | Lost 7 parts (1p2n2u2w) 5641 | -6/Garrison | Lost 5 parts (1n4u) 5736 | -6/Garrison | Triggered checkpoint 5872 | -6/Garrison | Core integrity fell below 20% 5944 | -6/Garrison | Discovered new exit (range 9) 5984 | -6/Garrison | Build established: Scavenger-Mutant 6004 | -6/Garrison | Spotted B-90 Cyclops 6004 | -6/Garrison | Spotted B-86 Titan 6028 | -6/Garrison | Destroyed by B-86 Titan with Hardcell Cannon Last Messages --------------- 0b10 Decoder Chip [Generic] destroyed. Thermal Shield destroyed. B-90 Cyclops springs to life. Machine disabled. Carbon-fiber Leg destroyed. Attempting to rewire B-90 Cyclops. Carbon-fiber Leg destroyed. Attempting to rewire B-90 Cyclops. Carbon-fiber Leg destroyed. Lgt. Nuclear Core destroyed. Machine disabled. Slug penetrates Machine. Machine disabled. Attempting to rewire B-90 Cyclops. CR-A16's Pointy Stick destroyed. B-90 Cyclops activates siege mode. Lgt. Nuclear Core destroyed. Focal Shield destroyed. Critical hit (Blast). [Achievement: Achiever] Map ----- +----------------------------------------------------+ | ??????????????????????????????? | | ??????????????????????????????? | | ??????????????????????????????? | | ??????????????????????????????? | | ??????????????????????????????? | | ??????????????????????????????? | | ??????????????????????????????^ | | ??????????????????????????????? | | ??????????????????????????????? | | ??????????????????????????????? | | ??????????????????????????????? | | ??????????????????????????????? | | ??????????????????????????????? | | ??????????????????????????????? | | ??????????????????????????????? | | ??????????????????????????????? | | ?????????????????????????###### | | ????###############??????#**%[ | | ????#"""""BB"""BB"##?????#!!!!! | | ????#"m ""BB"""BB""############ | | ????#"" | | ????#""! | | ????#"" % ! ########## | | ????#BB #????????? | | ????#BB ! #????????? | | ????# @ #????????? | | ????#"" ! ] #?######## | | ????#"" #?# | | ????#BB ! = #?# | | ????#BB #?# < #### | | ????#"" ! #????????? | | ????#"" ! BB #????????? | | ????#"" BB #????????? | | ?????" """BB" " ""###????????? | | ?????"""""BB""" "##??????????? | | ????###############???????????? | | ??????????????????????????????? | | ??????????????????????????????? | | ??????????????????????????????? | | ??????????????????????????????? | | ??????????????????????????????? | | ??????????????????????????????? | | ??????????????????????????????? | | ??????????????????????????????? | | ?????????????????????????!?!??? | | ?????????????????????????!?!??? | | ?????????????????????????!?!??? | | ??????????????????????????????? | | ??????????????????????????????? | | ??????????????????????????????? | +----------------------------------------------------+ Best States ------------- Heat Dissipation 64 Coolant Potential 65 Energy Generation 29 Energy Capacity 500 Matter Stores 300 Matter Capacity 350 Sight Range 16 Robot Scan Range 14 Terrain Scan Density 10 Cloak Strength 2 Armor Coverage 225 Resistance: KI 20 Resistance: TH 20 Evasion (%) 63 Melee Accuracy 8 Recoil Reduction 2 Item Schematics ----------------- Adv. Heat Sink | -7/Zion | Archive Transmission Jammer | -7/Zion | Archive Corruption Screen | -7/Zion | Archive Hvy. Flak Cannon | -7/Zion | Archive Imp. Transmission Jammer | -7/Zion | Archive Adv. System Shield | -7/Zion | Archive Dynamic Insulation System | -7/Zion | Archive Thermal Shield | -7/Zion | Archive Imp. Field Recycling Unit | -7/Zion | Archive Imp. Target Analyzer | -7/Zion | Archive Imp. Hacking Suite | -7/Zion | Archive Imp. Salvage Targeting Computer | -7/Zion | Archive Powered Hammer | -7/Zion | Archive Fission Core | -7/Zion | Archive Riot Gun | -7/Zion | Free Battle Cannon | -7/Zion | Free Barrage Gun | -7/Zion | Free Slug Cannon | -7/Zion | Free Hvy. Beamcaster | -7/Zion | Free Robot Schematics ------------------ M-14 Sweeper | -7/Zion | Archive R-06 Scavenger | -7/Zion | Archive M-28 Smith | -7/Zion | Archive Fabricated ------------ Nothing Repaired ---------- Grenade Launcher | 6% | -10/Materials Sml. Laser | 24% | -10/Materials Alien Tech Used ----------------- None Achievements -------------- Achiever Decoder Ring Challenges ------------ None Game ------ Seed BattleFlightDesublimator Manual? 0 Play Time 00:57:31 Cumulative 23.6 hours Start 2025.10.12 @ 19:45:19 End 2025.10.12 @ 20:53:38 Sessions 1 Manual Loads 0 Difficulty Rogue Special Mode None Game No. 63 Rogue 63 Adventurer 0 Explorer 0 Win Type - Total 0 Types 0/0/0/0/0/0/0/0/0/0 Lore% 21 Gallery% 27 Achievement% 25 Wizard Run 0 Options --------- Layout 2 ASCII 0 Keyboard 0 Movement Numpad Keybinds 0 Fullscreen 1 Font 24/Smallcaps Map View 50x44 Zoom Use 0% Tactical HUD 0 Map Filters NONE Filters NONE Steam 1 RUN: 820ff50d-af62-4cee-8452-1188de80ec3c